fUSD/lending_fUSD_20240426
["ID","MTS","AMOUNT","RATE_DAILY","PERIOD"]
[323573543,1714090237273,-1139.47,0.00010958,2]
[323573544,1714090237284,-500.0,0.00010958,2]
[323573545,1714090237294,-1429.08,0.00010958,2]
[323573546,1714090237304,-500.0,0.00010958,2]
[323573547,1714090237313,-500.0,0.00010958,2]
[323573548,1714090237323,-1330.3,0.00010958,2]
[323573549,1714090237335,-969.86,0.00010958,2]
[323573550,1714090237345,-500.0,0.00010958,2]
[323573551,1714090237355,-500.0,0.00010958,2]
[323573552,1714090237364,-500.0,0.00010958,2]
[323573553,1714090237374,-500.0,0.00010958,2]
[323573554,1714090237383,-500.0,0.00010958,2]
[323573555,1714090237396,-5894.21,0.00010958,2]
[323573556,1714090237406,-780.71,0.00010958,2]
[323573557,1714090237416,-500.0,0.00010958,2]
[323573558,1714090237427,-500.0,0.00010958,2]
[323573559,1714090237437,-500.0,0.00010958,2]
[323573560,1714090237447,-1345.25,0.00010958,2]
[323573561,1714090237458,-500.0,0.00010958,2]
[323573562,1714090237470,-500.0,0.00010958,2]
[323573563,1714090237480,-500.0,0.00010958,2]
[323573564,1714090237489,-500.0,0.00010958,2]
[323573565,1714090237499,-500.0,0.00010958,2]
[323573566,1714090237509,-500.0,0.00010958,2]
[323573567,1714090237519,-850.01,0.00010958,2]
[323573568,1714090237528,-1524.01,0.00010958,2]
[323573569,1714090237538,-522.79354576,0.00010958,2]
[323573570,1714090237548,-626.25,0.00010958,2]
[323573571,1714090237557,-500.0,0.00010958,2]
[323573572,1714090237568,-500.0,0.00010958,2]
[323573573,1714090237579,-500.0,0.00010958,2]
[323573574,1714090237589,-500.0,0.00010958,2]
[323573575,1714090237599,-500.0,0.00010958,2]
[323573576,1714090237610,-500.0,0.00010958,2]
[323573577,1714090237620,-500.0,0.00010958,2]
[323573578,1714090237630,-500.0,0.00010958,2]
[323573579,1714090237640,-579.96,0.00010958,2]
[323573580,1714090237649,-500.0,0.00010958,2]
[323573581,1714090237659,-1442.79,0.00010958,2]
[323573582,1714090237669,-500.0,0.00010958,2]
[323573583,1714090237679,-500.0,0.00010958,2]
[323573584,1714090237688,-500.0,0.00010958,2]
[323573585,1714090237699,-500.0,0.00010958,2]
[323573586,1714090237708,-500.0,0.00010958,2]
[323573587,1714090237717,-500.0,0.00010958,2]
[323573588,1714090237727,-500.0,0.00010958,2]
[323573589,1714090237737,-500.0,0.00010958,2]
[323573590,1714090237746,-14238.64,0.00010958,2]
[323573591,1714090237756,-500.0,0.00010958,2]
[323573592,1714090237766,-500.0,0.00010958,2]
[323573593,1714090237775,-1684.59,0.00010958,2]
[323573594,1714090237785,-500.0,0.00010958,2]
[323573595,1714090237795,-926.68,0.00010958,2]
[323573596,1714090237804,-500.0,0.00010958,2]
[323573597,1714090237813,-500.0,0.00010958,2]
[323573598,1714090237823,-646.92,0.00010958,2]
[323573599,1714090237834,-500.0,0.00010958,2]
[323573600,1714090237844,-500.0,0.00010958,2]
[323573601,1714090237853,-500.0,0.00010958,2]
[323573602,1714090237863,-1082.59,0.00010958,2]
[323573603,1714090237873,-648.92,0.00010958,2]
[323573604,1714090237883,-500.0,0.00010958,2]
[323573605,1714090237892,-814.33,0.00010958,2]
[323573606,1714090237902,-1556.79,0.00010958,2]
[323573607,1714090237911,-526.23,0.00010958,2]
[323573608,1714090237921,-500.0,0.00010958,2]
[323573609,1714090237930,-500.0,0.00010958,2]
[323573610,1714090237940,-500.0,0.00010958,2]
[323573611,1714090237949,-500.0,0.00010958,2]
[323573612,1714090237958,-500.0,0.00010958,2]
[323573613,1714090237967,-500.0,0.00010958,2]
[323573614,1714090237977,-2856.29,0.00010958,2]
[323573615,1714090237986,-534.5,0.00010958,2]
[323573616,1714090237995,-500.0,0.00010958,2]
[323573617,1714090238005,-500.0,0.00010958,2]
[323573619,1714090238014,-500.0,0.00010958,2]
[323573620,1714090238023,-500.0,0.00010958,2]
[323573621,1714090238033,-500.0,0.00010958,2]
[323573622,1714090238042,-870.62,0.00010958,2]
[323573623,1714090238051,-500.0,0.00010958,2]
[323573624,1714090238060,-500.0,0.00010958,2]
[323573625,1714090238070,-500.0,0.00010958,2]
[323573626,1714090238081,-500.0,0.00010958,2]
[323573628,1714090238090,-1161.54,0.00010958,2]
[323573630,1714090238099,-500.0,0.00010958,2]
[323573631,1714090238108,-1169.39,0.00010958,2]
[323573632,1714090238118,-570.38,0.00010958,2]
[323573633,1714090238127,-2461.66,0.00010958,2]
[323573634,1714090238136,-500.0,0.00010958,2]
[323573635,1714090238145,-818.99,0.00010958,2]
[323573636,1714090238154,-500.0,0.00010958,2]
[323573637,1714090238165,-500.0,0.00010958,2]
[323573638,1714090238174,-500.0,0.00010958,2]
[323573639,1714090238183,-500.0,0.00010958,2]
[323573640,1714090238192,-500.0,0.00010958,2]
[323573641,1714090238201,-2455.5,0.00010958,2]
[323573643,1714090238210,-558.44242675,0.00010958,2]
[323573645,1714090238219,-500.0,0.00010958,2]
[323573646,1714090238229,-355.16,0.00010958,2]
[323573647,1714090238238,-500.0,0.00010958,2]
[323573648,1714090238249,-929.76,0.00010958,2]
[323573649,1714090238259,-500.0,0.00010958,2]
[323573650,1714090238269,-500.0,0.00010958,2]
[323573651,1714090238278,-500.0,0.00010958,2]
[323573652,1714090238287,-500.0,0.00010958,2]
[323573653,1714090238298,-1903.31,0.00010958,2]
[323573654,1714090238309,-500.0,0.00010958,2]
[323573655,1714090238320,-4126.56,0.00010958,2]
[323573656,1714090238404,-500.0,0.00010958,2]
[323573657,1714090238413,-500.0,0.00010958,2]
[323573658,1714090238422,-500.0,0.00010958,2]
[323573659,1714090238432,-1004.19,0.00010958,2]
[323573660,1714090238442,-799.42,0.00010958,2]
[323573661,1714090238451,-500.0,0.00010958,2]
[323573662,1714090238460,-500.0,0.00010958,2]
[323573663,1714090238471,-515.24,0.00010958,2]
[323573664,1714090238480,-224.92694134,0.00010958,2]
[323573665,1714090238490,-500.0,0.00010958,2]
[323573666,1714090238499,-500.0,0.00010958,2]
[323573667,1714090238508,-500.0,0.00010958,2]
[323573668,1714090238518,-982.18,0.00010958,2]
[323573669,1714090238527,-500.0,0.00010958,2]
[323573670,1714090238537,-500.0,0.00010958,2]
[323573671,1714090238546,-500.0,0.00010958,2]
[323573672,1714090238555,-500.0,0.00010958,2]
[323573673,1714090238564,-500.0,0.00010958,2]
[323573674,1714090238574,-1127.93,0.00010958,2]
[323573675,1714090238584,-594.4,0.00010958,2]
[323573676,1714090238593,-500.0,0.00010958,2]
[323573677,1714090238603,-500.0,0.00010958,2]
[323573678,1714090238612,-500.0,0.00010958,2]
[323573679,1714090238622,-579.79,0.00010958,2]
[323573680,1714090238631,-500.0,0.00010958,2]
[323573681,1714090238640,-500.0,0.00010958,2]
[323573682,1714090238650,-1000.34,0.00010958,2]
[323573683,1714090238659,-500.0,0.00010958,2]
[323573686,1714090238668,-500.0,0.00010958,2]
[323573688,1714090238677,-500.0,0.00010958,2]
[323573691,1714090238687,-500.0,0.00010958,2]
[323573694,1714090238696,-274.44,0.00010958,2]
[323573696,1714090238706,-500.0,0.00010958,2]
[323573697,1714090238716,-500.0,0.00010958,2]
[323573698,1714090238725,-280.6400628,0.00010958,2]
[323573699,1714090239175,-584.6999372,0.00010958,2]
[323573700,1714090239185,-563.72,0.00010958,2]
[323573701,1714090239194,-1442.02,0.00010958,2]
[323573702,1714090239203,-855.62,0.00010958,2]
[323573703,1714090239212,-722.73,0.00010958,2]
[323573704,1714090239221,-500.0,0.00010958,2]
[323573705,1714090239230,-785.41,0.00010958,2]
[323573706,1714090239239,-3746.85,0.00010958,2]
[323573707,1714090239248,-2913.85,0.00010958,2]
[323573708,1714090239257,-500.0,0.00010958,2]
[323573709,1714090239266,-500.0,0.00010958,2]
[323573710,1714090239276,-500.0,0.00010958,2]
[323573711,1714090239285,-1357.31,0.00010958,2]
[323573712,1714090239294,-566.1,0.00010958,2]
[323573713,1714090239303,-500.0,0.00010958,2]
[323573714,1714090239312,-618.44,0.00010958,2]
[323573715,1714090239321,-505.07,0.00010958,2]
[323573716,1714090239332,-500.0,0.00010958,2]
[323573717,1714090239341,-938.0,0.00010958,2]
[323573718,1714090239350,-500.0,0.00010958,2]
[323573719,1714090239359,-783.16,0.00010958,2]
[323573720,1714090239370,-872.52,0.00010958,2]
[323573721,1714090239380,-1592.01,0.00010958,2]
[323573722,1714090239393,-500.0,0.00010958,2]
[323573723,1714090239409,-500.0,0.00010958,2]
[323573724,1714090239419,-500.0,0.00010958,2]
[323573725,1714090239429,-500.0,0.00010958,2]
[323573726,1714090239439,-500.0,0.00010958,2]
[323573727,1714090239449,-2753.4900608,0.00010958,2]
[323573728,1714090239479,-401.82437314,0.00010958,2]
[323573729,1714090239490,-150.79556606,0.00010958,2]
[323573730,1714090239500,-500.0,0.00010958,2]
[323573731,1714090239510,-131.15463317,0.00010958,2]
[323573732,1714090239523,-368.84536683,0.00010958,2]
[323573733,1714090239532,-500.0,0.00010958,2]
[323573734,1714090239541,-500.0,0.00010958,2]
[323573735,1714090239550,-437.15656064,0.00010958,2]
[323573736,1714090239563,-62.84343936,0.00010958,2]
[323573737,1714090239572,-500.0,0.00010958,2]
[323573738,1714090239583,-264.29368349,0.00010958,2]
[323573739,1714090239606,-439.78631651,0.00010958,2]
[323573740,1714090239614,-500.0,0.00010958,2]
[323573741,1714090239624,-700.29,0.00010958,2]
[323573742,1714090239632,-39.70786119,0.00010958,2]
[323573743,1714090239644,-460.29213881,0.00010958,2]
[323573744,1714090239653,-166.41987773,0.00010958,2]
[323573745,1714090239665,-333.58012227,0.00010958,2]
[323573746,1714090239674,-12.90291467,0.00010958,2]
[323573747,1714090239686,-418.90217464,0.00010958,2]
[323573748,1714090239705,-68.19491069,0.00010958,2]
[323573749,1714090239715,-500.0,0.00010958,2]
[323573750,1714090239724,-500.0,0.00010958,2]
[323573751,1714090239733,-1181.87,0.00010958,2]
[323573752,1714090239743,-500.0,0.00010958,2]
[323573753,1714090239752,-936.59,0.00010958,2]
[323573754,1714090239762,-500.0,0.00010958,2]
[323573755,1714090239771,-622.5,0.00010958,2]
[323573756,1714090239780,-2161.73382777,0.00010958,2]
[323573757,1714090239792,-147.41617223,0.00010958,2]
[323573758,1714090239801,-1688.74,0.00010958,2]
[323573759,1714090239810,-1866.87,0.00010958,2]
[323573760,1714090239819,-500.0,0.00010958,2]
[323573761,1714090239828,-626.92,0.00010958,2]
[323573762,1714090239838,-500.0,0.00010958,2]
[323573763,1714090239847,-233.02,0.00010958,2]
[323573764,1714090239857,-1175.57,0.00010958,2]
[323573765,1714090239866,-1423.54,0.00010958,2]
[323573766,1714090239875,-500.0,0.00010958,2]
[323573767,1714090239884,-500.0,0.00010958,2]
[323573768,1714090239893,-500.0,0.00010958,2]
[323573769,1714090239902,-539.85,0.00010958,2]
[323573770,1714090239911,-699.86,0.00010958,2]
[323573771,1714090239921,-927.81,0.00010958,2]
[323573772,1714090239930,-500.0,0.00010958,2]
[323573773,1714090239940,-500.0,0.00010958,2]
[323573774,1714090239960,-500.0,0.00010958,2]
[323573775,1714090239970,-500.0,0.00010958,2]
[323573776,1714090239980,-500.0,0.00010958,2]
[323573777,1714090239990,-500.0,0.00010958,2]
[323573778,1714090239999,-500.0,0.00010958,2]
[323573779,1714090240009,-500.0,0.00010958,2]
[323573780,1714090240018,-694.76,0.00010958,2]
[323573781,1714090240027,-500.0,0.00010958,2]
[323573782,1714090240035,-500.0,0.00010958,2]
[323573783,1714090240045,-893.5,0.00010958,2]
[323573784,1714090240054,-596.04,0.00010958,2]
[323573785,1714090240063,-500.0,0.00010958,2]
[323573786,1714090240072,-500.0,0.00010958,2]
[323573787,1714090240082,-1028.5,0.00010958,2]
[323573788,1714090240092,-500.0,0.00010958,2]
[323573789,1714090240101,-500.0,0.00010958,2]
[323573790,1714090240110,-625.75,0.00010958,2]
[323573791,1714090240119,-500.0,0.00010958,2]
[323573792,1714090240129,-500.0,0.00010958,2]
[323573793,1714090240138,-1105.93,0.00010958,2]
[323573794,1714090240148,-3249.63,0.00010958,2]
[323573795,1714090240158,-1086.35,0.00010958,2]
[323573796,1714090240167,-500.0,0.00010958,2]
[323573797,1714090240176,-500.0,0.00010958,2]
[323573798,1714090240185,-500.0,0.00010958,2]
[323573799,1714090240194,-500.0,0.00010958,2]
[323573800,1714090240203,-3337.84,0.00010958,2]
[323573801,1714090240213,-500.0,0.00010958,2]
[323573802,1714090240222,-500.0,0.00010958,2]
[323573803,1714090240231,-4554.05,0.00010958,2]
[323573804,1714090240240,-983.16,0.00010958,2]
[323573805,1714090240249,-500.0,0.00010958,2]
[323573806,1714090240258,-500.0,0.00010958,2]
[323573807,1714090240268,-500.0,0.00010958,2]
[323573808,1714090240277,-500.0,0.00010958,2]
[323573809,1714090240286,-500.0,0.00010958,2]
[323573810,1714090240295,-150.0,0.00010959,2]
[323573811,1714090240306,-749.63590295,0.00011,2]
[323573812,1714090240315,-250.0,0.00011,2]
[323573813,1714090240325,-487.55396849,0.00011,2]
[323573814,1714090240335,-10000.0,0.00011053,2]
[323573815,1714090240345,-10000.0,0.00011053,2]
[323573816,1714090240354,-1812.06,0.00011096,2]
[323573817,1714090240364,-910.54,0.00011096,2]
[323573818,1714090240373,-413.76,0.00011096,2]
[323573819,1714090240383,-3000.0,0.0001112,2]
[323573820,1714090240396,-2355.5229007,0.0001123,2]
[323573821,1714090240405,-2658.43,0.00011231,2]
[323573822,1714090240415,-1355.77,0.00011231,2]
[323573823,1714090240424,-5165.9,0.00011231,2]
[323573824,1714090240451,-876.62,0.00011231,2]
[323573825,1714090240460,-5314.91,0.00011231,2]
[323573826,1714090240471,-10000.0,0.00011232,2]
[323573827,1714090240480,-10000.0,0.00011232,2]
[323573828,1714090240490,-10000.0,0.00011232,2]
[323573829,1714090240499,-10000.0,0.00011232,2]
[323573830,1714090240508,-656.48,0.00011232,2]
[323573831,1714090240518,-500.0,0.00011232,2]
[323573832,1714090240527,-500.0,0.00011232,2]
[323573833,1714090240536,-500.0,0.00011232,2]
[323573834,1714090240545,-500.0,0.00011232,2]
[323573835,1714090240554,-500.0,0.00011232,2]
[323573836,1714090240564,-500.0,0.00011232,2]
[323573837,1714090240574,-500.0,0.00011232,2]
[323573838,1714090240583,-500.0,0.00011232,2]
[323573839,1714090240593,-500.0,0.00011232,2]
[323573840,1714090240602,-500.0,0.00011232,2]
[323573841,1714090240611,-500.0,0.00011232,2]
[323573842,1714090240620,-500.0,0.00011232,2]
[323573843,1714090240630,-500.0,0.00011232,2]
[323573844,1714090240639,-500.0,0.00011232,2]
[323573845,1714090240648,-500.0,0.00011232,2]
[323573846,1714090240657,-500.0,0.00011232,2]
[323573847,1714090240667,-500.0,0.00011232,2]
[323573848,1714090240676,-500.0,0.00011232,2]
[323573849,1714090240685,-501.94,0.00011232,2]
[323573850,1714090240694,-500.0,0.00011232,2]
[323573851,1714090240704,-500.0,0.00011232,2]
[323573852,1714090240713,-500.0,0.00011232,2]
[323573853,1714090240722,-500.0,0.00011232,2]
[323573854,1714090240731,-500.0,0.00011232,2]
[323573855,1714090240740,-500.0,0.00011232,2]
[323573856,1714090240749,-500.0,0.00011232,2]
[323573857,1714090240758,-500.0,0.00011232,2]
[323573858,1714090240767,-500.0,0.00011232,2]
[323573859,1714090240776,-500.0,0.00011232,2]
[323573860,1714090240785,-500.0,0.00011232,2]
[323573861,1714090240794,-500.0,0.00011232,2]
[323573862,1714090240803,-500.0,0.00011232,2]
[323573863,1714090240812,-500.0,0.00011232,2]
[323573864,1714090240821,-500.0,0.00011232,2]
[323573865,1714090240830,-500.0,0.00011232,2]
[323573866,1714090240840,-500.0,0.00011232,2]
[323573867,1714090240849,-500.0,0.00011232,2]
[323573868,1714090240858,-500.0,0.00011232,2]
[323573869,1714090240868,-500.0,0.00011232,2]
[323573870,1714090240880,-500.0,0.00011232,2]
[323573871,1714090240890,-500.0,0.00011232,2]
[323573872,1714090240900,-500.0,0.00011232,2]
[323573873,1714090240909,-500.0,0.00011232,2]
[323573874,1714090240919,-500.0,0.00011232,2]
[323573875,1714090240928,-500.0,0.00011232,2]
[323573876,1714090240938,-500.0,0.00011232,2]
[323573877,1714090240947,-800.77,0.00011232,2]
[323573878,1714090240957,-500.0,0.00011232,2]
[323573879,1714090240967,-500.0,0.00011232,2]
[323573880,1714090240977,-500.0,0.00011232,2]
[323573881,1714090240986,-500.0,0.00011232,2]
[323573882,1714090240996,-500.0,0.00011232,2]
[323573883,1714090241006,-500.0,0.00011232,2]
[323573884,1714090241016,-500.0,0.00011232,2]
[323573885,1714090241026,-500.0,0.00011232,2]
[323573886,1714090241035,-500.0,0.00011232,2]
[323573887,1714090241045,-500.0,0.00011232,2]
[323573888,1714090241055,-500.0,0.00011232,2]
[323573889,1714090241065,-500.0,0.00011232,2]
[323573890,1714090241074,-500.0,0.00011232,2]
[323573891,1714090241086,-500.0,0.00011232,2]
[323573892,1714090241096,-500.0,0.00011232,2]
[323573893,1714090241105,-500.0,0.00011232,2]
[323573894,1714090241115,-500.0,0.00011232,2]
[323573895,1714090241125,-500.0,0.00011232,2]
[323573896,1714090241134,-500.0,0.00011232,2]
[323573897,1714090241144,-500.0,0.00011232,2]
[323573898,1714090241153,-500.0,0.00011232,2]
[323573899,1714090241163,-500.0,0.00011232,2]
[323573900,1714090241173,-500.0,0.00011232,2]
[323573901,1714090241182,-218.54488626,0.00011232,2]
[323573902,1714090241192,-357.04944308,0.00011232,2]
[323573903,1714090241205,-500.0,0.00011232,2]
[323573904,1714090241215,-500.0,0.00011232,2]
[323573905,1714090241225,-500.0,0.00011232,2]
[323573906,1714090241235,-500.0,0.00011232,2]
[323573907,1714090241245,-1094.73,0.00011232,2]
[323573908,1714090241254,-500.0,0.00011232,2]
[323573909,1714090241264,-500.0,0.00011232,2]
[323573910,1714090241275,-500.0,0.00011232,2]
[323573911,1714090241284,-500.0,0.00011232,2]
[323573912,1714090241294,-500.0,0.00011232,2]
[323573913,1714090241304,-500.0,0.00011232,2]
[323573914,1714090241314,-580.53081798,0.00011232,2]
[323573915,1714090241325,-500.0,0.00011232,2]
[323573916,1714090241336,-500.0,0.00011232,2]
[323573917,1714090241346,-500.0,0.00011232,2]
[323573918,1714090241357,-500.0,0.00011232,2]
[323573919,1714090241367,-500.0,0.00011232,2]
[323573920,1714090241377,-500.0,0.00011232,2]
[323573921,1714090241388,-1067.96,0.00011232,2]
[323573922,1714090241401,-237.36,0.00011232,2]
[323573923,1714090241410,-500.0,0.00011232,2]
[323573924,1714090241421,-500.0,0.00011232,2]
[323573925,1714090241431,-1021.71,0.00011232,2]
[323573926,1714090241441,-500.0,0.00011232,2]
[323573927,1714090241450,-500.0,0.00011232,2]
[323573928,1714090241460,-500.0,0.00011232,2]
[323573929,1714090241472,-649.58,0.00011232,2]
[323573930,1714090241482,-500.0,0.00011232,2]
[323573931,1714090241492,-500.0,0.00011232,2]
[323573932,1714090241502,-500.0,0.00011232,2]
[323573933,1714090241511,-500.0,0.00011232,2]
[323573934,1714090241521,-500.0,0.00011232,2]
[323573935,1714090241531,-863.1,0.00011232,2]
[323573936,1714090241542,-500.0,0.00011232,2]
[323573937,1714090241553,-500.0,0.00011232,2]
[323573938,1714090241563,-500.0,0.00011232,2]
[323573939,1714090241573,-500.0,0.00011232,2]
[323573940,1714090241584,-500.0,0.00011232,2]
[323573941,1714090241593,-500.0,0.00011232,2]
[323573942,1714090241603,-500.0,0.00011232,2]
[323573943,1714090241613,-500.0,0.00011232,2]
[323573944,1714090241623,-500.0,0.00011232,2]
[323573945,1714090241632,-1064.59,0.00011232,2]
[323573946,1714090241642,-500.0,0.00011232,2]
[323573947,1714090241652,-500.0,0.00011232,2]
[323573948,1714090241662,-500.0,0.00011232,2]
[323573949,1714090241671,-500.0,0.00011232,2]
[323573950,1714090241681,-537.85,0.00011232,2]
[323573951,1714090241691,-500.0,0.00011232,2]
[323573952,1714090241700,-500.0,0.00011232,2]
[323573953,1714090241710,-958.13,0.00011232,2]
[323573954,1714090241720,-500.0,0.00011232,2]
[323573955,1714090241730,-500.0,0.00011232,2]
[323573956,1714090241739,-500.0,0.00011232,2]
[323573957,1714090241749,-500.0,0.00011232,2]
[323573958,1714090241759,-1020.82,0.00011232,2]
[323573959,1714090241768,-500.0,0.00011232,2]
[323573960,1714090241778,-500.0,0.00011232,2]
[323573961,1714090241787,-500.0,0.00011232,2]
[323573962,1714090241797,-500.0,0.00011232,2]
[323573963,1714090241807,-500.0,0.00011232,2]
[323573964,1714090241817,-500.0,0.00011232,2]
[323573965,1714090241826,-631.7,0.00011232,2]
[323573966,1714090241837,-500.0,0.00011232,2]
[323573967,1714090241847,-500.0,0.00011232,2]
[323573968,1714090241858,-529.44,0.00011232,2]
[323573969,1714090241868,-500.0,0.00011232,2]
[323573970,1714090241878,-500.0,0.00011232,2]
[323573971,1714090241887,-500.0,0.00011232,2]
[323573972,1714090241897,-500.0,0.00011232,2]
[323573973,1714090241906,-500.0,0.00011232,2]
[323573974,1714090241916,-500.0,0.00011232,2]
[323573975,1714090241926,-367.69449969,0.00011232,2]
[323573976,1714090241947,-132.30550031,0.00011232,2]
[323573977,1714090241957,-127.5564997,0.00011232,2]
[323573978,1714090241970,-357.4799971,0.00011232,2]
[323573979,1714090243804,-500.0,0.00010958,2]
[323573980,1714090243813,-500.0,0.00010958,2]
[323573981,1714090243823,-14.9635032,0.00011232,2]
[323573982,1714090243832,-595.13,0.00011232,2]
[323573983,1714090243842,-500.0,0.00011232,2]
[323573984,1714090243852,-500.0,0.00011232,2]
[323573985,1714090243861,-500.0,0.00011232,2]
[323573986,1714090243871,-338.38221721,0.00011232,2]
[323573987,1714090243882,-500.0,0.00011232,2]
[323573988,1714090243892,-500.0,0.00011232,2]
[323573989,1714090243904,-500.0,0.00011232,2]
[323573990,1714090243915,-590.65,0.00011232,2]
[323573991,1714090243924,-604.86,0.00011232,2]
[323573992,1714090243934,-536.63394878,0.00011232,2]
[323573993,1714090243947,-500.0,0.00011232,2]
[323573994,1714090243956,-500.0,0.00011232,2]
[323573995,1714090243966,-500.0,0.00011232,2]
[323573996,1714090243976,-500.0,0.00011232,2]
[323573997,1714090243986,-500.0,0.00011232,2]
[323573998,1714090243996,-500.0,0.00011232,2]
[323573999,1714090244006,-500.0,0.00011232,2]
[323574000,1714090244015,-500.0,0.00011232,2]
[323574001,1714090244024,-544.49,0.00011232,2]
[323574002,1714090244034,-1081.47,0.00011232,2]
[323574003,1714090244043,-500.0,0.00011232,2]
[323574004,1714090244053,-1103.58,0.00011232,2]
[323574005,1714090244063,-500.0,0.00011232,2]
[323574006,1714090244075,-500.0,0.00011232,2]
[323574007,1714090244086,-500.0,0.00011232,2]
[323574008,1714090244096,-500.0,0.00011232,2]
[323574009,1714090244107,-938.56,0.00011232,2]
[323574010,1714090244117,-500.0,0.00011232,2]
[323574011,1714090244128,-500.0,0.00011232,2]
[323574012,1714090244138,-771.33,0.00011232,2]
[323574013,1714090244147,-581.67,0.00011232,2]
[323574014,1714090244158,-500.0,0.00011232,2]
[323574015,1714090244167,-500.0,0.00011232,2]
[323574016,1714090244177,-500.0,0.00011232,2]
[323574017,1714090244186,-500.0,0.00011232,2]
[323574018,1714090244195,-500.0,0.00011232,2]
[323574019,1714090244204,-500.0,0.00011232,2]
[323574020,1714090244214,-500.0,0.00011232,2]
[323574021,1714090244224,-500.0,0.00011232,2]
[323574022,1714090244233,-500.0,0.00011232,2]
[323574023,1714090244242,-500.0,0.00011232,2]
[323574024,1714090244251,-500.0,0.00011232,2]
[323574025,1714090244261,-500.0,0.00011232,2]
[323574026,1714090244272,-500.0,0.00011232,2]
[323574027,1714090244284,-500.0,0.00011232,2]
[323574028,1714090244296,-941.89,0.00011232,2]
[323574029,1714090244305,-500.0,0.00011232,2]
[323574030,1714090244314,-566.42,0.00011232,2]
[323574031,1714090244324,-500.0,0.00011232,2]
[323574032,1714090244336,-500.0,0.00011232,2]
[323574033,1714090244345,-500.0,0.00011232,2]
[323574034,1714090244355,-500.0,0.00011232,2]
[323574035,1714090244365,-500.0,0.00011232,2]
[323574036,1714090244374,-500.0,0.00011232,2]
[323574037,1714090244385,-500.0,0.00011232,2]
[323574038,1714090244398,-500.0,0.00011232,2]
[323574039,1714090244407,-227.47778514,0.00011232,2]
[323574040,1714090244418,-500.0,0.00011232,2]
[323574041,1714090244428,-500.0,0.00011232,2]
[323574042,1714090244439,-500.0,0.00011232,2]
[323574043,1714090244448,-500.0,0.00011232,2]
[323574044,1714090244457,-500.0,0.00011232,2]
[323574045,1714090244467,-500.0,0.00011232,2]
[323574046,1714090244477,-500.0,0.00011232,2]
[323574047,1714090244486,-500.0,0.00011232,2]
[323574048,1714090244495,-500.0,0.00011232,2]
[323574049,1714090244505,-500.0,0.00011232,2]
[323574050,1714090244514,-500.0,0.00011232,2]
[323574051,1714090244524,-500.0,0.00011232,2]
[323574052,1714090244534,-500.0,0.00011232,2]
[323574053,1714090244543,-500.0,0.00011232,2]
[323574054,1714090244553,-500.0,0.00011232,2]
[323574055,1714090244562,-500.0,0.00011232,2]